[Event "Turkey IS Bank Super League 2017"]
[Site "Darica-Kocaeli"]
[Date "2017.08.03"]
[Round "9"]
[White "Ozen, Bahadir"]
[Black "Gokerkan, Cem Kaan"]
[Result "0-1"]
[ECO "A08"]
[WhiteElo "2315"]
[BlackElo "2321"]
[Annotator "NA RC"]
[PlyCount "126"]
[EventType "team-tourn"]
[EventCountry "TUR"]
[SourceTitle "playchess.com"]
[Source "ChessBase"]
[SourceQuality "1"]
[TimeControl "40/5400+30:1800+30"]

1. g3 {[%emt 0:00:30]} Nf6 {[%emt 0:03:00]} 2. Bg2 {[%emt 0:00:30]} d5 {[%emt 0:00:30]} 3. d3 {[%emt 0:00:30]} g6 {[%emt 0:06:30]} 4. Nf3 {[%emt 0:05:30]} Bg7 {[%emt 0:00:30]} 5. O-O {[%emt 0:00:30]} O-O {[%emt 0:00:30]} 6. Nbd2 {[%emt 0:01:30]} c5 {[%emt 0:06:30]} 7. e4 {[%emt 0:00:30]} dxe4 {[%emt 0:00:30]} 8. dxe4 {[%emt 0:01:30]} Nc6 {[%emt 0:00:30]} 9. Re1 {[%emt 0:03:30]} e5 {[%emt 0:07:30]} 10. c3 {[%emt 0:02:30] LiveBook: 17 Games A08: King's Indian Attack} h6 {[%emt 0:01:30]} (10... Qc7 11. Qc2 Be6 12. Nf1 Rad8 13. Bg5 Bc4 14. Qc1 Rd7 15. Bh3 Be6 16. Bxe6 fxe6 17. Bxf6 Rxf6 {½-½ (37) Yuffa,D (2474)-Gutenev,A (2349) Pardubice 2015}) 11. a3 {[%emt 0:04:30] [%clk 1:14]} ({White should try} 11. Nc4 $11) 11... Be6 $146 {[%emt 0:08:30]} ({Predecessor:} 11... Qe7 12. b4 Rd8 13. Qc2 cxb4 14. axb4 Qc7 15. Nc4 Be6 16. Ne3 Rac8 17. Qb1 b6 {1-0 (28) Sahetchian,A (2172)-Daillet,E (2281) Paris 1999}) 12. Qe2 {[%emt 0:02:30]} a6 {[%emt 0:05:30]} 13. b4 {[%emt 0:02:30]} Nd7 {[%emt 0:00:30]} 14. Nc4 {[%emt 0:05:30]} b5 {[%emt 0:06:30]} 15. Ne3 {[%emt 0:03:30]} c4 {[%emt 0:02:30]} 16. Nd5 {[%emt 0:06:30]} Nb6 {[%emt 0:00:30]} 17. Rd1 {[%emt 0:04:30]} (17. Nxb6 $11 Qxb6 18. Be3) 17... Na4 {[%emt 0:06:30]} 18. Qc2 {[%emt 0:03:30]} Ra7 {[%emt 0:03:30]} 19. Be3 {[%emt 0:02:30]} Rd7 {[%emt 0:00:30]} 20. Rac1 {[%emt 0:10:30]} Bxd5 {[%emt 0:04:30]} 21. exd5 {[%emt 0:00:30]} Ne7 {[%emt 0:00:30]} 22. Nd2 {[%emt 0:00:30]} Nxd5 {[%emt 0:00:30]} 23. Bxd5 {[%emt 0:00:30]} Rxd5 {[%emt 0:00:30]} 24. Nxc4 {[%emt 0:00:00]} Nxc3 {[%emt 0:07:30]} 25. Re1 {[%emt 0:00:00]} Na4 {[%emt 0:01:30]} 26. Nb2 {[%emt 0:01:30]} Nxb2 {[%emt 0:01:30]} 27. Qxb2 {[%emt 0:00:30]} Qd7 {[%emt 0:00:30]} 28. Qc2 {[%emt 0:00:00]} Rd3 {[%emt 0:01:30]} 29. Qc6 {[%emt 0:00:00]} Qxc6 {[%emt 0:01:30]} 30. Rxc6 {[%emt 0:00:30]} Ra8 {[%emt 0:10:00]} 31. Rec1 {[%emt 0:00:30]} (31. Bc1 $11) 31... Rxa3 {[%emt 0:01:30]} 32. Rc8+ {[%emt 0:00:30]} Rxc8 {[%emt 0:00:30]} 33. Rxc8+ {[%emt 0:00:30]} Kh7 {[%emt 0:00:30]} 34. Rc7 {[%emt 0:00:30]} Kg8 {[%emt 0:00:30]} 35. Rc8+ {[%emt 0:00:30]} Kh7 {[%emt 0:00:30]} 36. Rc7 {[%emt 0:00:00]} g5 {[%emt 0:09:08]} 37. Rxf7 {[%emt 0:00:00]} Kg6 {[%emt 0:00:00]} 38. Ra7 {[%emt 0:00:00]} Bf8 {[%emt 0:01:50]} 39. Bc5 {[%emt 0:00:00]} Bxc5 {[%emt 0:00:21]} 40. bxc5 {[%emt 0:00:00]} g4 $2 {[%emt 0:03:41]} ({Black should try} 40... Kf5 $19 41. c6 Ke6) 41. c6 {[%emt 0:01:00]} Kg5 {[%emt 0:05:30]} 42. c7 {[%emt 0:04:30]} Rc3 {[%emt 0:00:30]} 43. Rxa6 {[%emt 0:10:30]} Rxc7 {[%emt 0:00:00]} 44. Rb6 {[%emt 0:00:30]} Rc5 {[%emt 0:06:05]} 45. Kg2 {[%emt 0:16:30]} h5 {[%emt 0:00:25]} 46. h3 {[%emt 0:00:30]} Kf5 {[%emt 0:06:20]} 47. Rh6 {[%emt 0:03:30]} Kg5 {[%emt 0:00:30]} 48. Rb6 {[%emt 0:00:30]} Kf5 {[%emt 0:00:00]} 49. Rh6 {[%emt 0:00:00]} gxh3+ {[%emt 0:00:27]} 50. Kxh3 {[%emt 0:00:00]} b4 {[%emt 0:05:13]} 51. Rxh5+ {[%emt 0:03:30]} Kg6 {[%emt 0:00:18]} 52. Kg4 {[%emt 0:01:30]} b3 {[%emt 0:00:25]} 53. Rh1 {[%emt 0:01:30]} b2 {[%emt 0:00:25]} 54. Rb1 {[%emt 0:00:30]} Rb5 {[%emt 0:00:13]} 55. Kf3 {[%emt 0:16:01]} Kf5 {[%emt 0:00:38]} 56. Ke2 {[%emt 0:03:50]} Rb3 {[%emt 0:08:46]} 57. f3 {[%emt 0:06:09]} Ke6 {[%emt 0:00:35]} 58. Kf2 {[%emt 0:03:32]} Kd5 {[%emt 0:00:31]} 59. f4 {[%emt 0:01:24]} exf4 {[%emt 0:01:15]} 60. gxf4 {[%emt 0:00:30]} Kc4 {[%emt 0:00:11]} 61. Ke2 {[%emt 0:04:43]} Kc3 {[%emt 0:00:08]} 62. Kd1 {[%emt 0:00:20]} Rb4 {[%emt 0:00:39]} 63. f5 {[%emt 0:00:09]} Rf4 {[%emt 0:00:00]} 0-1

[Event "Turkey IS Bank Super League 2017"]
[Site "Darica-Kocaeli"]
[Date "2017.08.03"]
[Round "9"]
[White "Burcu, Cagatay"]
[Black "Buyukasik, Diyap"]
[Result "1/2-1/2"]
[ECO "A45"]
[WhiteElo "2268"]
[BlackElo "2285"]
[Annotator "NA"]
[PlyCount "103"]
[EventType "team-tourn"]
[EventCountry "TUR"]
[SourceTitle "playchess.com"]
[Source "ChessBase"]
[SourceQuality "1"]
[TimeControl "40/5400+30:1800+30"]

1. d4 {[%emt 0:00:30]} Nf6 {[%emt 0:01:00]} 2. Bf4 {[%emt 0:01:30]} g6 {[%emt 0:00:30]} 3. Nc3 {[%emt 0:00:00]} d5 {[%emt 0:02:30] A45: Trompowsky Attack} 4. e3 {[%emt 0:00:00]} Bg7 {[%emt 0:00:30]} 5. h4 {[%emt 0:00:30]} h6 {[%emt 0:00:30]} (5... c6 6. Nf3 Bg4 7. Be2 Nbd7 8. Ne5 Bxe2 9. Qxe2 h5 10. O-O-O Qa5 11. Kb1 {1-0 (44) Karjakin,S (2781)-Giri,A (2771) Stavanger 2017}) 6. Be2 {[%emt 0:00:30]} O-O {[%emt 0:02:30]} 7. Nf3 {[%emt 0:04:30]} c5 {[%emt 0:11:30]} 8. Ne5 {[%emt 0:06:30]} Nc6 {[%emt 0:09:30]} 9. O-O $146 {[%emt 0:12:30] [%clk 1:08]} ({Predecessor:} 9. h5 g5 10. Bxg5 Nxe5 11. dxe5 d4 12. exd4 cxd4 13. exf6 exf6 14. Bd2 {1-0 (21) Novotny,M (2283)-Gschwendtner,S (2058) Klatovy 2016}) 9... cxd4 {[%emt 0:06:30]} 10. exd4 {[%emt 0:05:30]} Nd7 {[%emt 0:07:30]} 11. Qd2 {[%emt 0:19:30]} Ndxe5 {[%emt 0:02:30]} 12. dxe5 {[%emt 0:00:00]} d4 {[%emt 0:00:30]} 13. Ne4 {[%emt 0:06:00]} Kh7 {[%emt 0:01:30]} 14. c3 {[%emt 0:04:30]} dxc3 {[%emt 0:00:30]} 15. Qxc3 {[%emt 0:00:30]} Qd4 {[%emt 0:00:00]} 16. Qxd4 {[%emt 0:04:30]} Nxd4 {[%emt 0:00:00]} 17. Bc4 {[%emt 0:01:30]} Be6 {[%emt 0:02:30]} 18. Rfd1 {[%emt 0:03:30]} Rad8 {[%emt 0:06:30]} 19. Bxe6 {[%emt 0:03:30]} Nxe6 {[%emt 0:08:30]} 20. Bg3 {[%emt 0:04:58]} g5 {[%emt 0:00:30]} 21. Nc3 {[%emt 0:04:41]} Nf4 {[%emt 0:03:30]} 22. hxg5 {[%emt 0:00:39]} hxg5 {[%emt 0:00:30]} 23. Re1 {[%emt 0:02:32]} Kg6 {[%emt 0:08:30]} 24. Re4 {[%emt 0:01:26]} Kf5 {[%emt 0:01:30]} 25. Rae1 {[%emt 0:00:44]} Rd2 {[%emt 0:01:30]} 26. Bxf4 {[%emt 0:03:00]} gxf4 {[%emt 0:00:30]} 27. Rb4 {[%emt 0:02:55]} Bxe5 {[%emt 0:02:30]} 28. Rb5 {[%emt 0:00:30]} f6 {[%emt 0:00:30]} 29. Rxb7 {[%emt 0:03:30]} Bd4 {[%emt 0:02:38]} 30. Ne2 {[%emt 0:02:40]} Bb6 {[%emt 0:00:33]} 31. Rxe7 {[%emt 0:00:22]} Rg8 {[%emt 0:01:33]} 32. Kf1 {[%emt 0:00:36]} Rh8 {[%emt 0:00:06]} 33. Kg1 {[%emt 0:00:20]} Rxb2 {[%emt 0:02:55]} 34. Rd1 {[%emt 0:00:46]} Rd8 {[%emt 0:01:27]} 35. Rxd8 {[%emt 0:00:59]} Bxd8 {[%emt 0:00:39]} 36. Nd4+ {[%emt 0:00:12]} Kg6 {[%emt 0:00:05]} 37. Rxa7 {[%emt 0:01:12]} Bb6 {[%emt 0:00:46]} 38. Ra4 {[%emt 0:00:04]} Rd2 {[%emt 0:00:20]} 39. Nf3 {[%emt 0:01:16]} Rxf2 {[%emt 0:03:43]} 40. Kh2 {[%emt 0:00:00]} Kf5 {[%emt 0:03:15]} 41. Rb4 {[%emt 0:05:38]} Be3 {[%emt 0:02:30]} 42. Kh3 {[%emt 0:01:30]} Rxa2 {[%emt 0:00:30]} 43. Nh4+ {[%emt 0:01:30]} Ke6 {[%emt 0:01:30]} 44. Re4+ {[%emt 0:03:30]} Kd5 {[%emt 0:02:30]} 45. Re8 {[%emt 0:00:30]} Bd4 {[%emt 0:04:30]} 46. Kg4 {[%emt 0:01:30]} Be5 {[%emt 0:07:30]} 47. Kf5 {[%emt 0:00:30]} Kc4 {[%emt 0:01:30]} 48. Rg8 {[%emt 0:04:37]} Kd3 {[%emt 0:05:31]} 49. Ng6 {[%emt 0:01:47]} Ke3 {[%emt 0:01:08]} 50. Nxe5 {[%emt 0:01:38]} fxe5 {[%emt 0:00:46]} 51. Kxe5 {[%emt 0:00:03]} Ra5+ {[%emt 0:00:19]} 52. Kf6 $11 {[%emt 0:00:09]} 1/2-1/2

[Event "Turkey IS Bank Super League 2017"]
[Site "Darica-Kocaeli"]
[Date "2017.08.03"]
[Round "9"]
[White "Kiremitciyan, Ari"]
[Black "Goksel, Doga Cihan"]
[Result "1-0"]
[ECO "E91"]
[WhiteElo "2240"]
[BlackElo "2247"]
[Annotator "NA"]
[PlyCount "117"]
[EventType "team-tourn"]
[EventCountry "TUR"]
[SourceTitle "playchess.com"]
[Source "ChessBase"]
[SourceQuality "1"]
[TimeControl "40/5400+30:1800+30"]

1. Nf3 {[%emt 0:00:30]} Nf6 {[%emt 0:02:00]} 2. c4 {[%emt 0:00:30]} g6 {[%emt 0:00:30]} 3. Nc3 {[%emt 0:00:00]} Bg7 {[%emt 0:00:30]} 4. e4 {[%emt 0:00:00]} d6 {[%emt 0:00:30]} 5. d4 {[%emt 0:00:00]} O-O {[%emt 0:00:30]} 6. Be2 {[%emt 0:00:00]} Bg4 {[%emt 0:00:30]} 7. Be3 {[%emt 0:00:30]} Nfd7 {[%emt 0:00:00]} 8. Rc1 {[%emt 0:00:00]} c5 {[%emt 0:01:00]} 9. d5 {[%emt 0:00:00]} Na6 {[%emt 0:03:30]} 10. h3 {[%emt 0:04:30] E91: King's Indian: Classical: 6 Be2, unusual replies including 6...c5 and 6...Bg4} (10. O-O Nc7 11. h3 Bxf3 12. Bxf3 a6 13. a4 Re8 14. Qd2 e6 15. a5 exd5 16. exd5 Qh4 17. Bg4 Rxe3 18. Qxe3 {1-0 (41) Gelfand,B (2750)-Kramnik,V (2790) Nice 2010}) 10... Bxf3 {[%emt 0:00:30]} 11. Bxf3 {[%emt 0:00:30]} Nc7 {[%emt 0:00:30]} 12. Be2 {[%emt 0:10:30]} a6 {[%emt 0:04:30]} 13. a4 {[%emt 0:00:30]} Re8 {[%emt 0:01:30]} 14. O-O {[%emt 0:02:30]} e6 {[%emt 0:08:30] LiveBook: 3 Games} 15. Qd2 {[%emt 0:08:30]} exd5 {[%emt 0:01:30]} 16. exd5 {[%emt 0:00:30] [%clk 1:09]} Rb8 {[%emt 0:06:30]} 17. Rfe1 {[%emt 0:01:30]} f5 {[%emt 0:06:30]} 18. Bf1 $146 {[%emt 0:05:30]} ({Predecessor:} 18. a5) 18... Nf6 {[%emt 0:07:30]} 19. Bg5 {[%emt 0:06:30]} Qd7 {[%emt 0:03:30]} 20. Bd3 {[%emt 0:05:30]} b6 {[%emt 0:05:30]} 21. Rb1 {[%emt 0:00:30]} a5 {[%emt 0:03:30]} 22. Rbd1 {[%emt 0:09:30]} Rxe1+ {[%emt 0:03:30]} 23. Rxe1 {[%emt 0:00:00]} Re8 {[%emt 0:00:00]} 24. Rxe8+ {[%emt 0:01:00]} Qxe8 {[%emt 0:05:00]} 25. Qe3 {[%emt 0:10:30]} Qf8 {[%emt 0:03:30]} 26. Qe2 {[%emt 0:12:30]} Qf7 {[%emt 0:03:30]} 27. Kf1 {[%emt 0:03:49]} Bf8 {[%emt 0:04:30]} 28. Bd2 {[%emt 0:01:37]} Bg7 {[%emt 0:01:30]} 29. Ke1 {[%emt 0:01:23]} Bf8 {[%emt 0:03:30]} 30. Kd1 {[%emt 0:00:29]} Bg7 {[%emt 0:00:30]} 31. Kc1 {[%emt 0:01:31]} Qd7 {[%emt 0:01:30]} 32. f3 {[%emt 0:01:42]} Qe8 {[%emt 0:01:15]} 33. Qxe8+ {[%emt 0:00:30]} Nfxe8 {[%emt 0:00:30]} 34. Kd1 {[%emt 0:00:27]} Kf7 {[%emt 0:04:26]} 35. Ke2 {[%emt 0:00:22]} Nf6 {[%emt 0:00:30]} 36. g4 {[%emt 0:04:11]} fxg4 {[%emt 0:01:23]} 37. hxg4 {[%emt 0:00:12]} Bf8 {[%emt 0:02:04]} 38. Kf2 {[%emt 0:01:13]} Be7 {[%emt 0:01:12]} 39. Kg3 {[%emt 0:00:22]} Kg7 {[%emt 0:02:29]} 40. g5 {[%emt 0:00:00]} Nd7 {[%emt 0:03:41]} 41. f4 {[%emt 0:06:42]} h6 {[%emt 0:09:30]} 42. Ne4 {[%emt 0:05:30]} hxg5 {[%emt 0:01:30]} 43. Bc3+ {[%emt 0:00:30]} Kf7 {[%emt 0:01:30]} 44. fxg5 {[%emt 0:04:30]} ({White should play} 44. Nxg5+ $16 Bxg5 45. fxg5) 44... Ne8 {[%emt 0:00:30]} 45. Be2 {[%emt 0:01:30]} Nf8 {[%emt 0:06:32]} 46. Bg4 {[%emt 0:01:30]} Ng7 {[%emt 0:03:09]} 47. Kf4 {[%emt 0:07:11]} Ne8 {[%emt 0:02:07]} 48. Be1 {[%emt 0:02:26]} Nc7 {[%emt 0:00:51]} 49. Bd2 {[%emt 0:00:26]} Ke8 {[%emt 0:04:09]} 50. Kg3 {[%emt 0:04:11]} Kd8 {[%emt 0:01:28]} 51. Be2 {[%emt 0:02:31]} Ne8 {[%emt 0:01:25]} 52. Bc3 {[%emt 0:00:11]} Nd7 {[%emt 0:00:55]} 53. Kf4 {[%emt 0:01:01]} Nf8 {[%emt 0:01:13]} 54. Nd2 {[%emt 0:00:50]} Kd7 {[%emt 0:02:37]} 55. Bd3 {[%emt 0:00:30]} Kd8 {[%emt 0:00:30]} 56. Nf3 {[%emt 0:00:30]} Kd7 {[%emt 0:00:30]} 57. Kg4 {[%emt 0:01:29]} Kd8 {[%emt 0:05:33]} 58. Nh4 $18 {[%emt 0:00:20]} Nh7 {[%emt 0:00:58]} 59. Bd2 {[%emt 0:00:17]} 1-0

[Event "Turkey IS Bank Super League 2017"]
[Site "Darica-Kocaeli"]
[Date "2017.08.03"]
[Round "9"]
[White "Tasdogen, Dincer"]
[Black "Tuncer, Tuna"]
[Result "0-1"]
[ECO "B22"]
[WhiteElo "2215"]
[BlackElo "2274"]
[Annotator "NA"]
[PlyCount "46"]
[EventType "team-tourn"]
[EventCountry "TUR"]
[SourceTitle "playchess.com"]
[Source "ChessBase"]
[SourceQuality "1"]
[TimeControl "40/5400+30:1800+30"]

1. e4 {[%emt 0:00:30]} c5 {[%emt 0:01:00]} 2. c3 {[%emt 0:00:30]} Nf6 {[%emt 0:01:30]} 3. e5 {[%emt 0:00:30]} Nd5 {[%emt 0:00:30]} 4. Nf3 {[%emt 0:00:00]} e6 {[%emt 0:00:00]} 5. Bc4 {[%emt 0:01:00]} d6 {[%emt 0:03:00]} 6. d4 {[%emt 0:01:30]} cxd4 {[%emt 0:01:30]} 7. cxd4 {[%emt 0:00:30]} Be7 {[%emt 0:01:30]} 8. O-O {[%emt 0:00:30] B22: Sicilian: 2 c3} O-O {[%emt 0:00:30]} 9. Re1 {[%emt 0:01:30] LiveBook: 28 Games} (9. Bd2 b6 10. Nc3 dxe5 11. Bxd5 exd5 12. Nxe5 Be6 13. Rc1 f6 14. Nd3 Bf7 15. Re1 Nc6 {½-½ (50) Mamedov,R (2688)-Matlakov,M (2694) Tallinn 2016}) 9... b6 {[%emt 0:07:30]} 10. Nbd2 {[%emt 0:21:30] [%clk 1:07]} (10. Bxd5 $5 exd5 11. Nc3 $11) 10... Nd7 $146 {[%emt 0:14:30]} ({Predecessor:} 10... Bb7 11. a3 dxe5 12. dxe5 Nd7 13. Ne4 Qb8 14. Bd3 g6 15. Ng3 Rd8 {0-1 (38) Kocheev,A (2319)-Fedorov,A (2576) Minsk 2017}) 11. Ne4 {[%emt 0:16:30]} dxe5 {[%emt 0:04:30]} 12. dxe5 {[%emt 0:00:30]} Nc5 {[%emt 0:04:30]} 13. Qe2 {[%emt 0:12:30]} (13. Bxd5 $5 exd5 14. Ng3 $11) 13... Bb7 {[%emt 0:04:30]} 14. Nxc5 {[%emt 0:01:30]} Bxc5 {[%emt 0:00:30]} 15. Qe4 {[%emt 0:06:30]} Rc8 {[%emt 0:11:30]} 16. Ng5 {[%emt 0:16:40]} g6 {[%emt 0:01:30]} 17. Qh4 {[%emt 0:02:30]} h5 {[%emt 0:00:30]} 18. Be2 {[%emt 0:02:47]} Kg7 {[%emt 0:08:30]} 19. g4 $2 {[%emt 0:06:08]} (19. Bd2 $11 {and White stays safe.}) 19... Be7 {[%emt 0:00:30]} 20. f4 $19 {[%emt 0:05:46]} (20. Qg3 $142 Bxg5 21. gxh5) 20... Rxc1 {[%emt 0:05:30]} 21. Raxc1 {[%emt 0:00:05]} Nxf4 {[%emt 0:00:30]} 22. Bf1 {[%emt 0:00:56]} Bxg5 {[%emt 0:00:30]} 23. Qf2 {[%emt 0:00:02]} Qd5 {[%emt 0:00:30]} 0-1

[Event "Turkey IS Bank Super League 2017"]
[Site "Darica-Kocaeli"]
[Date "2017.08.03"]
[Round "9"]
[White "Yilmaz, Goktan"]
[Black "Ertan, Can"]
[Result "1/2-1/2"]
[ECO "C88"]
[WhiteElo "2202"]
[BlackElo "2377"]
[Annotator "NA"]
[PlyCount "125"]
[EventType "team-tourn"]
[EventCountry "TUR"]
[SourceTitle "playchess.com"]
[Source "ChessBase"]
[SourceQuality "1"]
[TimeControl "40/5400+30:1800+30"]

1. e4 {[%emt 0:00:30]} e5 {[%emt 0:01:00]} 2. Nf3 {[%emt 0:00:30]} Nc6 {[%emt 0:00:30]} 3. Bb5 {[%emt 0:00:00]} a6 {[%emt 0:00:30]} 4. Ba4 {[%emt 0:00:00]} Nf6 {[%emt 0:00:30]} 5. O-O {[%emt 0:00:30]} Be7 {[%emt 0:00:00]} 6. Re1 {[%emt 0:00:00] LiveBook: 29421 Games} b5 {[%emt 0:00:00]} 7. Bb3 {[%emt 0:00:00]} O-O {[%emt 0:00:00]} 8. a4 {[%emt 0:01:30]} b4 {[%emt 0:00:00]} 9. d4 {[%emt 0:00:30]} Nxd4 {[%emt 0:20:30] C88: Closed Ruy Lopez: Anti-Marshall Systems} (9... d6 10. dxe5 dxe5 11. Qxd8 Rxd8 12. h3 Na5 13. Ba2 Nd7 14. Bg5 Kf8 15. Nbd2 f6 16. Be3 Nb6 17. Bxb6 cxb6 18. Bd5 Ra7 {½-½ (41) Nakamura,H (2785)-Aronian,L (2793) Stavanger 2017}) 10. Bxf7+ {[%emt 0:18:30]} Rxf7 {[%emt 0:00:30]} 11. Nxe5 {[%emt 0:00:30]} Rf8 $146 {[%emt 0:00:00]} ({Predecessor:} 11... Ne6 12. Nxf7 Kxf7 13. e5 Bb7 14. exf6 Bxf6 15. Nd2 Kg8 16. Ne4 Be5 17. Qh5 {0-1 (35) McKay,R-Toth,P Ybbs 1968}) 12. Qxd4 {[%emt 0:00:00]} Bb7 {[%emt 0:01:00] [%clk 1:12]} 13. Bg5 {[%emt 0:24:00]} (13. Nd2 $16) 13... c5 {[%emt 0:07:30]} 14. Qc4+ {[%emt 0:03:30]} d5 {[%emt 0:01:30]} 15. exd5 {[%emt 0:00:30]} Bxd5 {[%emt 0:08:30]} 16. Qh4 {[%emt 0:00:30]} (16. Qd3 $16) 16... Qc7 {[%emt 0:13:30]} 17. Nd2 {[%emt 0:04:30]} Rae8 {[%emt 0:01:30]} 18. Ndc4 {[%emt 0:05:30]} Bd8 {[%emt 0:19:30]} 19. Rad1 {[%emt 0:04:30]} Re6 {[%emt 0:00:30]} 20. Qh3 {[%emt 0:11:30]} Qb7 {[%emt 0:02:30]} 21. b3 {[%emt 0:08:49]} Ne4 {[%emt 0:07:12]} 22. Be3 {[%emt 0:01:30]} Bc7 {[%emt 0:04:30]} 23. f4 {[%emt 0:01:12]} Rfe8 {[%emt 0:00:25]} 24. Nd3 {[%emt 0:05:53]} Rh6 {[%emt 0:06:47]} 25. Qd7 {[%emt 0:03:13]} Bc6 {[%emt 0:01:05]} 26. Qg4 {[%emt 0:01:56]} Rg6 {[%emt 0:00:07]} 27. Qh3 {[%emt 0:00:17]} Qa8 {[%emt 0:03:02]} 28. Nde5 {[%emt 0:01:37]} Rh6 {[%emt 0:00:46]} 29. Qg4 {[%emt 0:00:08]} Nf6 {[%emt 0:00:50]} 30. Qe2 {[%emt 0:00:05]} Ne4 {[%emt 0:00:15]} 31. Qg4 {[%emt 0:01:07]} Nc3 {[%emt 0:00:49]} 32. Rd2 {[%emt 0:00:52]} Ne4 {[%emt 0:01:01]} 33. Rdd1 {[%emt 0:00:04]} Bxe5 {[%emt 0:00:07]} 34. Nxe5 {[%emt 0:00:22]} Rxe5 {[%emt 0:00:51]} 35. fxe5 {[%emt 0:00:01]} Rg6 {[%emt 0:00:00]} 36. Qh4 {[%emt 0:00:51]} Bd5 {[%emt 0:00:11]} 37. g3 {[%emt 0:01:25]} h6 {[%emt 0:00:31]} 38. Bc1 {[%emt 0:01:42]} Nc3 {[%emt 0:00:10]} 39. Rd2 {[%emt 0:00:00]} Qc8 {[%emt 0:01:13]} 40. Bb2 {[%emt 0:00:00]} Rg4 {[%emt 0:01:08]} 41. Qe7 {[%emt 0:03:26]} Rd4 {[%emt 0:11:21]} 42. Bxc3 {[%emt 0:01:30]} bxc3 {[%emt 0:00:22]} 43. Rxd4 {[%emt 0:01:30]} cxd4 {[%emt 0:00:06]} 44. e6 {[%emt 0:00:00]} d3 {[%emt 0:00:46]} 45. cxd3 {[%emt 0:03:00]} c2 {[%emt 0:00:51]} 46. Qf7+ {[%emt 0:00:30]} Kh8 {[%emt 0:00:05]} 47. Qf4 {[%emt 0:01:30]} Bxe6 {[%emt 0:00:06]} 48. b4 {[%emt 0:04:30]} Qc3 {[%emt 0:00:31]} 49. Qe3 {[%emt 0:00:30]} Bf5 {[%emt 0:02:58]} 50. b5 {[%emt 0:02:17]} axb5 {[%emt 0:00:54]} 51. axb5 {[%emt 0:00:01]} Bxd3 {[%emt 0:00:14]} 52. b6 {[%emt 0:00:35]} Qb2 $2 {[%emt 0:01:34]} (52... Qb4 $14) 53. b7 {[%emt 0:08:43]} Bg6 {[%emt 0:00:43]} 54. Qa7 {[%emt 0:01:23]} c1=Q {[%emt 0:02:11]} 55. b8=Q+ {[%emt 0:00:03]} Kh7 {[%emt 0:00:00]} 56. Rxc1 $2 {[%emt 0:04:10]} (56. Qxb2 $18 Qxb2 57. Qe3) 56... Qxc1+ {[%emt 0:00:00]} 57. Kf2 {[%emt 0:00:00]} Qc2+ $11 {[%emt 0:00:09]} 58. Ke1 {[%emt 0:01:53]} Qc1+ {[%emt 0:00:39]} 59. Ke2 {[%emt 0:00:28]} Qc2+ {[%emt 0:00:33]} 60. Ke3 {[%emt 0:00:17]} Qd3+ {[%emt 0:00:00]} 61. Kf2 {[%emt 0:00:34]} Qc2+ {[%emt 0:00:00]} 62. Kg1 {[%emt 0:00:41]} Qc1+ {[%emt 0:00:26]} 63. Kf2 {[%emt 0:02:52]} 1/2-1/2